bitfinex-derivatives/quotes_ETHF0:USTF0_20241023
["timestamp","ask_amount","ask_price","bid_price","bid_amount"]
[1729707300875,4.62960082,2483.4,2483.2,40.8]
[1729707301084,3.92942996,2483.7,2483.6,0.40302]
[1729707301282,3.2078,2484.1,2483.6,5.755]
[1729707301471,3.2078,2484.1,2483.9,3.87]
[1729707301676,3.2078,2484.1,2484.0,0.40295]
[1729707302686,3.2078,2484.8,2484.0,4.42855]
[1729707302878,0.40287,2484.6,2484.4,0.40288]
[1729707303187,4.44255484,2484.6,2484.5,1.885]
[1729707303480,4.26992866,2484.7,2484.6,0.40284]
[1729707303692,4.26992866,2484.7,2484.5,1.885]
[1729707303891,4.26992866,2484.6,2484.5,1.885]
[1729707304088,3.2078,2484.8,2484.5,1.885]
[1729707304089,4.26992866,2484.7,2484.5,1.885]
[1729707304380,5.7259,2485.6,2484.6,8.29766]
[1729707304580,3.27798724,2485.5,2485.1,0.40276]
[1729707304788,7.61852543,2485.5,2485.2,0.40275]
[1729707304980,0.40275,2485.3,2485.2,0.40275]
[1729707305185,0.40275,2485.3,2485.1,0.40278]
[1729707305382,0.40275,2485.3,2485.2,0.40275]
[1729707305383,4.41072543,2485.3,2485.2,0.40275]
[1729707305683,4.85954217,2485.4,2485.2,0.40276]
[1729707305983,3.2078,2485.5,2485.2,0.40276]
[1729707306181,4.45680217,2485.3,2485.2,3.87]
[1729707306377,4.45680217,2485.3,2485.2,4.27276]
[1729707306685,3.2078,2485.9,2485.2,7.0778]
[1729707306892,0.40273,2485.4,2485.3,1.885]
[1729707307380,4.86508561,2485.4,2485.3,1.885]
[1729707307689,4.46235561,2485.4,2485.3,1.885]
[1729707307880,4.86508561,2485.4,2485.3,1.885]
[1729707308077,4.86508561,2485.4,2485.3,2.28774]
[1729707308287,4.46235561,2485.4,2485.3,2.28774]
[1729707308581,0.40269,2485.7,2485.3,1.885]
[1729707308788,4.97631433,2485.7,2485.6,0.40269]
[1729707308985,3.61047,2485.8,2485.7,0.40268]
[1729707309286,3.61047,2485.8,2485.6,4.27269]
[1729707309287,4.57362433,2485.7,2485.6,4.27269]
[1729707309475,8.18410433,2485.8,2485.6,4.27268]
[1729707309687,3.61048,2485.8,2485.6,4.27268]
[1729707309985,4.64978237,2485.7,2485.6,3.87]
[1729707310378,4.24710237,2485.7,2485.3,5.0928]
[1729707310580,4.64979237,2485.7,2485.6,0.40269]
[1729707310884,0.4027,2485.6,2485.5,0.40271]
[1729707311086,4.24710237,2485.7,2485.3,5.0928]
[1729707311288,4.66736063,2485.6,2485.5,0.40269]
[1729707311486,5.07004063,2485.7,2485.3,5.0928]
[1729707311683,0.40268,2485.7,2485.6,0.40269]
[1729707311882,0.40269,2485.7,2485.5,0.4027]
[1729707312185,4.35051758,2485.6,2485.5,0.4027]
[1729707312482,4.60225115,2485.6,2485.3,5.0928]
[1729707312685,4.60225115,2485.6,2485.5,0.40271]
[1729707312895,0.40275,2485.3,2485.2,2.27876]
[1729707313187,4.60225115,2485.3,2485.2,2.27875]
[1729707313392,5.00499115,2485.3,2485.2,1.876]
[1729707313578,0.40274,2485.3,2485.2,1.876]
[1729707313878,4.58839307,2485.3,2485.2,1.876]
[1729707314279,4.18565307,2485.3,2485.2,10.17276]
[1729707314482,3.2078,2485.8,2485.5,0.4027]
[1729707314483,0.4027,2485.6,2485.5,0.4027]
[1729707314885,4.77461841,2485.6,2485.5,2.2777]
[1729707315287,4.37191841,2485.6,2485.5,2.2777]
[1729707315696,4.75802331,2485.7,2485.6,0.40269]
[1729707315888,0.40268,2485.7,2485.6,0.40269]
[1729707316089,4.75802331,2485.7,2485.6,0.40269]
[1729707316486,4.35534331,2485.7,2485.5,1.875]
[1729707316790,4.75803331,2485.7,2485.6,0.40269]
[1729707317590,4.75803331,2485.7,2485.2,3.61056]
[1729707317591,0.40274,2485.3,2485.2,3.61055]
[1729707317780,0.40274,2485.3,2485.2,5.48555]
[1729707317981,0.40274,2485.3,2485.2,3.2078]
[1729707318288,4.30847141,2485.3,2485.2,5.48556]
[1729707318595,4.21448,2485.8,2485.2,5.48556]
[1729707318596,4.42668477,2485.5,2485.2,3.2078]
[1729707318797,0.40276,2485.2,2485.1,5.41777]
[1729707319090,4.42668477,2485.7,2485.1,8.2228]
[1729707319293,0.40269,2485.7,2485.6,0.40269]
[1729707319486,4.82937477,2485.7,2485.6,0.40269]
[1729707320184,4.42668477,2485.7,2485.6,0.40269]
[1729707320383,4.82936477,2485.7,2485.6,0.40269]
[1729707320689,4.42668477,2485.7,2485.6,0.40269]
[1729707321191,4.42668477,2485.7,2485.5,3.5427]
[1729707321493,4.82937477,2485.7,2485.6,0.40269]
[1729707322001,4.42668477,2485.7,2485.4,0.40272]
[1729707322195,0.40276,2485.3,2485.2,0.40275]
[1729707322400,0.40279,2485.0,2484.9,3.5428]
[1729707322599,0.4028,2485.0,2484.9,0.4028]
[1729707322804,3.82454186,2485.0,2484.9,3.5428]
[1729707323092,4.65182747,2485.3,2484.9,3.14]
[1729707323297,0.40278,2485.1,2485.0,0.40278]
[1729707323492,0.40274,2485.4,2485.3,0.40274]
[1729707323699,3.2078,2485.8,2485.2,3.2078]
[1729707323890,0.40272,2485.5,2485.4,0.40272]
[1729707324093,4.95254069,2485.5,2485.4,0.40272]
[1729707324400,0.40268,2485.7,2485.6,0.40269]
[1729707324590,3.2078,2485.8,2485.4,3.14]
[1729707324790,0.40271,2485.5,2485.4,3.54272]
[1729707325094,0.40271,2485.5,2484.8,3.88914]
[1729707325095,4.37055218,2485.5,2484.9,7.35482]
[1729707325298,4.37055218,2485.5,2485.2,0.40275]
[1729707325299,0.40275,2485.3,2485.2,0.40275]
[1729707325504,1.00679,2485.5,2485.0,1.875]
[1729707325705,0.40279,2485.0,2484.8,0.40282]
[1729707325897,1.00691,2485.3,2484.7,43.94]
[1729707326208,0.40281,2484.9,2484.8,0.40281]
[1729707326598,4.29767185,2484.9,2484.8,0.40281]
[1729707327090,4.70048185,2484.9,2484.8,0.40281]
[1729707327299,4.29767185,2484.9,2484.8,0.40281]
[1729707327503,4.70048185,2484.9,2484.8,0.40281]
[1729707327701,4.29767185,2484.9,2484.8,0.40281]
[1729707328198,0.40281,2484.9,2484.8,0.40281]
[1729707328500,0.40282,2484.8,2484.7,40.8]
[1729707328704,0.40284,2484.7,2484.6,5.48565]
[1729707329200,5.01126921,2484.7,2484.6,46.28565]
[1729707329497,5.01126921,2484.7,2484.6,40.8]
[1729707329698,5.01126921,2484.7,2484.3,2.2779]
[1729707329699,0.40289,2484.4,2484.3,2.2779]
[1729707329897,0.40292,2484.3,2484.1,3.14]
[1729707330196,2.4515,2484.6,2484.5,0.40287]
[1729707330197,0.40286,2484.6,2484.5,0.40287]
[1729707330405,0.40287,2484.5,2484.4,0.40288]
[1729707330591,4.2046465,2484.5,2484.3,3.14]
[1729707330793,4.21488,2484.8,2484.3,3.14]
[1729707330794,4.2303879,2484.7,2484.3,3.14]
[1729707330994,0.40287,2484.6,2484.5,0.40286]
[1729707331194,4.2303879,2484.7,2484.3,3.14]
[1729707331388,0.40288,2484.5,2484.4,0.40288]
[1729707331795,0.40291,2484.3,2484.2,41.20292]
[1729707331996,0.40291,2484.3,2484.2,40.8]
[1729707332191,0.40297,2483.9,2483.8,10.071]
[1729707332594,0.40297,2483.9,2483.8,40.8]
[1729707332595,8.73816083,2483.9,2483.8,40.8]
[1729707332789,11.54299083,2483.9,2483.5,3.14]
[1729707332991,4.30879083,2483.9,2483.8,0.40299]
[1729707333193,4.30879083,2483.9,2483.5,41.20303]
[1729707333194,0.40303,2483.6,2483.5,41.20303]
[1729707333399,0.40302,2483.6,2483.5,41.20303]
[1729707333595,5.03387888,2483.6,2483.5,41.20303]
[1729707334001,4.63085888,2483.6,2483.5,41.20303]
[1729707334202,5.03387888,2483.6,2483.5,41.20303]
[1729707334508,3.2078,2483.9,2483.5,41.20303]
[1729707334509,0.40302,2483.7,2483.6,0.40302]
[1729707334798,4.59802502,2483.7,2483.6,0.40302]
[1729707335003,4.19500502,2483.7,2483.5,40.8]
[1729707335299,0.40302,2483.7,2483.6,0.40301]
[1729707335701,0.40302,2483.6,2483.5,41.20302]
[1729707336198,4.88455662,2483.6,2483.5,41.20304]
[1729707336400,4.48153662,2483.6,2483.5,41.20304]
[1729707336594,4.88455662,2483.6,2483.5,41.20304]
[1729707336795,0.40301,2483.7,2483.6,0.40302]
[1729707337201,4.4744432,2483.7,2483.6,0.40302]
[1729707337395,4.4744432,2483.7,2483.6,4.27302]
[1729707337602,3.2078,2483.9,2483.8,0.40299]
[1729707338104,8.25,2484.2,2484.0,0.40294]
[1729707338397,4.8997691,2484.1,2484.0,0.40294]
[1729707339598,8.5224291,2484.1,2483.5,40.8]
[1729707339798,5.5041791,2484.1,2483.5,40.8]
[1729707340304,0.40301,2483.7,2483.6,0.40301]
[1729707340503,5.5041791,2484.1,2483.5,40.8]
[1729707340707,4.21576747,2483.7,2483.5,40.8]
[1729707340906,0.40298,2483.9,2483.7,0.40299]
[1729707341219,9.25733,2484.2,2483.5,40.8]
[1729707341220,0.40302,2483.6,2483.5,40.8]
[1729707341604,4.61878747,2483.6,2483.5,40.8]
[1729707342112,4.61878747,2483.6,2483.5,41.20304]
[1729707342303,4.61878747,2483.6,2483.5,40.8]
[1729707342612,8.24216747,2483.6,2483.3,3.2078]
[1729707342810,0.40312,2483.0,2482.9,3.2078]
[1729707343311,8.22017993,2483.0,2482.6,3.2078]
[1729707343498,0.40319,2482.7,2482.3,3.2078]
[1729707343701,3.2078,2482.8,2482.3,3.2078]
[1729707344011,4.80172045,2482.6,2482.5,0.4032]
[1729707344312,4.80172045,2482.6,2481.8,0.4033]
[1729707344313,0.4033,2481.9,2481.8,0.4033]
[1729707344505,4.39853045,2482.6,2481.8,3.87]
[1729707344506,4.46871818,2482.6,2481.8,3.87]
[1729707344710,3.2078,2482.8,2482.5,0.4032]
[1729707344999,3.2078,2482.8,2482.3,0.40323]
[1729707345000,0.40319,2482.6,2482.3,0.40323]
[1729707345202,0.40322,2482.4,2482.3,0.40322]
[1729707345405,0.40325,2482.2,2482.1,0.40326]
[1729707345604,7.4302129,2482.5,2482.0,1.867]
[1729707345605,4.2224129,2482.4,2482.0,1.867]
[1729707345804,0.40326,2482.1,2482.0,2.27027]
[1729707346015,0.40326,2482.1,2482.0,0.40327]
[1729707346210,4.63853288,2482.1,2482.0,0.40327]
[1729707346508,4.63853288,2482.1,2481.7,9.0393]
[1729707346509,4.23527288,2482.1,2481.7,0.40333]
[1729707346810,3.2078,2482.2,2481.7,2.5834]
[1729707347017,3.2078,2482.2,2481.6,3.2078]
[1729707347018,0.40328,2482.1,2481.9,0.40328]
[1729707347310,0.40328,2482.1,2481.8,40.8]
[1729707347311,4.51600746,2482.1,2482.0,0.40328]
[1729707347814,0.40324,2482.3,2481.9,3.2078]
[1729707348113,4.35078054,2482.3,2482.2,0.40325]
[1729707348309,0.40324,2482.3,2482.1,0.40325]
[1729707348505,0.40324,2482.3,2482.2,0.40325]
[1729707348813,0.40326,2482.1,2482.0,0.40327]
[1729707349016,0.40326,2482.1,2481.9,0.40329]
[1729707349213,4.82531767,2482.1,2481.9,0.40328]
[1729707349414,4.42205767,2482.1,2482.0,0.40328]
[1729707349715,4.52399139,2482.5,2481.8,42.667]
[1729707349910,0.40329,2481.9,2481.8,40.8]
[1729707350213,4.92728139,2481.9,2481.8,40.8]
[1729707350515,8.95688139,2481.9,2481.8,40.8]
[1729707350717,8.55359139,2481.9,2481.8,40.8]
[1729707351013,8.95688139,2481.9,2481.8,40.8]
[1729707351214,4.52399139,2481.9,2481.8,41.20331]
[1729707351420,4.52399139,2481.9,2481.8,0.40331]
[1729707351817,4.06186046,2482.0,2481.9,0.40329]
[1729707352019,0.40328,2482.0,2481.8,0.4033]
[1729707352311,4.20959677,2482.0,2481.9,0.40329]
[1729707352515,0.40328,2482.0,2481.8,0.4033]
[1729707352716,0.40327,2482.1,2481.9,0.40329]
[1729707353118,4.62815505,2482.0,2481.9,0.40329]
[1729707354522,0.40328,2482.0,2481.9,0.40329]
[1729707354715,4.84061185,2482.0,2481.9,0.40329]
[1729707354910,0.40328,2482.0,2481.9,0.40329]
[1729707355111,4.43733185,2482.0,2481.8,1.868]
[1729707355320,4.84062185,2482.0,2481.9,0.40329]
[1729707355520,0.40329,2482.0,2481.9,0.40329]
[1729707355720,4.76092133,2482.0,2481.9,0.40329]
[1729707355922,0.4033,2481.9,2481.8,0.4033]
[1729707356118,8.22763133,2482.0,2481.6,40.8]
[1729707356326,3.55332,2481.8,2481.7,0.40332]
[1729707356522,3.15,2481.8,2481.6,40.8]
[1729707356727,0.4034,2481.3,2481.2,0.4034]
[1729707356923,0.40341,2481.2,2481.1,3.2078]
[1729707357225,4.7291159,2481.2,2481.1,3.61122]
[1729707357519,0.40342,2481.1,2481.0,40.8]
[1729707357725,0.40346,2480.9,2480.8,0.40346]
[1729707357917,3.15,2481.0,2480.4,3.2078]
[1729707358123,0.40348,2480.8,2480.7,0.40349]
[1729707358423,4.97951383,2480.8,2480.7,41.20349]
[1729707358823,4.97951383,2480.8,2480.7,0.40349]
[1729707359423,4.57603383,2480.8,2480.7,0.40349]
[1729707359622,4.57603383,2480.8,2480.7,3.61129]
[1729707360327,8.45298177,2481.0,2480.5,4.9272]
[1729707360522,3.2078,2480.9,2480.8,0.40347]
[1729707360718,3.2078,2480.9,2480.7,0.40349]
[1729707360918,0.40348,2480.8,2480.7,0.40349]
[1729707361227,4.25062792,2480.8,2480.7,0.40349]
[1729707361918,4.66145949,2480.9,2480.8,0.40347]
[1729707362118,3.2078,2481.2,2480.6,41.80877]
[1729707362328,4.66145949,2481.0,2480.8,1.00869]
[1729707362524,3.65195736,2481.0,2480.9,0.40346]
[1729707362726,7.0878,2481.5,2481.1,0.40342]
[1729707362727,4.41946216,2481.2,2481.1,0.40342]
[1729707362923,3.65195736,2481.4,2481.3,0.40339]
[1729707363123,3.2078,2481.5,2481.4,0.40338]
[1729707363322,3.61116,2481.5,2481.4,0.40338]
[1729707363633,11.65686216,2481.5,2480.8,4.21649]
[1729707363927,0.40346,2480.9,2480.8,3.61126]
[1729707364131,3.88,2481.1,2480.8,3.2078]
[1729707364325,4.30849412,2480.9,2480.5,3.2078]
[1729707364523,3.88,2480.6,2480.2,5.0768]
[1729707364724,4.28356,2480.3,2480.2,3.2078]
[1729707364930,0.40357,2480.2,2480.1,0.40359]
[1729707365129,4.29437172,2480.3,2480.2,0.40357]
[1729707365429,4.29437172,2480.3,2479.4,2.01849]
[1729707365430,3.2078,2478.3,2477.1,1.03978163]
[1729707365631,10.9678,2477.2,2476.4,1.55967244]
[1729707365825,3.2078,2476.9,2476.6,6.11208934]
[1729707366022,3.2078,2476.9,2476.8,6.11208934]
[1729707366224,3.2078,2476.9,2476.6,6.11208934]
[1729707366430,7.47676035,2476.9,2476.6,46.91208934]
[1729707366834,7.47676035,2476.9,2476.6,6.11208934]
[1729707367431,0.40422,2476.8,2476.6,6.11208934]
[1729707367828,4.33535482,2476.7,2476.6,6.11208934]
[1729707368134,0.40425,2476.6,2475.7,3.61218]
[1729707368436,1.01034,2477.3,2474.6,1.01142]
[1729707368437,3.2078,2476.0,2475.3,3.2078]
[1729707368634,4.33535482,2476.5,2475.6,3.2078]
[1729707368834,3.2078,2476.6,2476.4,6.11208934]
[1729707368835,7.4602942,2476.6,2476.4,6.11208934]
[1729707369135,3.2078,2476.6,2476.5,6.11208934]
[1729707370438,3.2078,2477.7,2476.6,4.0376]
[1729707370737,4.66483123,2477.2,2476.7,1.863]
[1729707370935,4.66483123,2477.2,2476.6,3.2078]
[1729707371135,3.2078,2477.2,2476.3,2.97109]
[1729707371333,4.66483123,2477.1,2476.3,2.5668]
[1729707371933,4.66483123,2477.1,2476.5,3.2078]
[1729707372539,0.40418,2477.0,2476.6,40.8]
[1729707372730,4.66483123,2477.1,2476.6,40.8]
[1729707372931,4.52922713,2476.9,2476.6,40.8]
[1729707373132,4.52922713,2477.1,2476.6,40.8]
[1729707373439,0.4042,2476.9,2476.6,40.8]
[1729707373633,3.2078,2477.2,2476.6,40.8]
[1729707373634,0.40418,2477.0,2476.6,40.8]
[1729707373830,4.53925854,2476.8,2476.6,40.8]
[1729707374031,7.5778,2477.2,2476.5,3.2078]
[1729707374032,8.57685854,2476.9,2476.5,3.2078]
[1729707374234,4.37,2476.8,2475.9,1.864]
[1729707374539,3.2078,2476.6,2476.0,40.8]
[1729707374733,4.53925854,2476.8,2476.0,45.8718]
[1729707374928,4.46194136,2476.5,2476.0,45.8718]
[1729707375128,7.66974136,2476.9,2476.1,0.40427]
[1729707375440,4.46194136,2476.8,2476.0,45.8718]
[1729707375644,3.2078,2476.9,2476.0,46.27609]
[1729707375837,4.26044231,2476.8,2476.0,46.27609]
[1729707376038,4.26044231,2476.8,2476.0,45.8718]
[1729707376243,3.2078,2476.4,2476.0,40.8]
[1729707376542,3.2078,2476.1,2475.4,3.2078]
[1729707376734,0.40432,2475.9,2475.4,3.2078]
[1729707377041,4.50279443,2475.8,2475.5,40.8]
[1729707377341,0.40435,2475.7,2475.4,3.2078]
[1729707377836,4.50279443,2475.6,2475.2,3.61223]
[1729707378042,4.50279443,2475.6,2475.2,3.2078]
[1729707378239,4.26420499,2475.8,2475.5,3.2078]
[1729707378541,4.26420499,2476.0,2475.5,3.2078]
[1729707378832,0.40429,2476.1,2475.5,3.2078]
[1729707379039,4.31984095,2476.0,2475.5,3.2078]
[1729707379243,7.52764095,2476.0,2475.5,3.2078]
[1729707379430,0.40436,2475.7,2475.5,3.2078]
[1729707379631,4.31984095,2475.9,2475.5,3.2078]
[1729707379827,4.50558598,2475.6,2475.5,3.2078]
[1729707380029,3.2078,2476.0,2475.5,3.2078]
[1729707380234,4.50558598,2475.9,2475.5,3.2078]
[1729707380433,3.2078,2476.0,2475.5,3.2078]
[1729707380628,3.2078,2476.0,2475.1,3.2078]
[1729707380629,4.37,2475.8,2475.1,3.2078]
[1729707380834,3.2078,2475.7,2475.1,3.2078]
[1729707381045,0.40437,2475.6,2475.1,3.2078]
[1729707381233,4.63932733,2475.7,2475.1,3.2078]
[1729707381435,4.37,2475.8,2475.2,0.40442]
[1729707381436,4.63932733,2475.5,2475.2,0.40442]
[1729707381634,4.63932733,2475.7,2475.1,3.2078]
[1729707381835,3.2078,2476.0,2475.1,3.2078]
[1729707382141,2.6105,2476.6,2474.5,1.864]
[1729707382142,4.32650844,2475.9,2475.7,3.2078]
[1729707382333,4.32650844,2475.9,2475.8,0.40432]
[1729707382540,4.37,2476.5,2475.9,0.4043]
[1729707382541,4.32650844,2476.0,2475.9,0.4043]
[1729707382732,8.58542021,2476.5,2475.7,3.2078]
[1729707382733,4.37,2476.5,2476.1,0.40428]
[1729707382935,4.39924974,2476.0,2475.7,3.2078]
[1729707383143,4.39924974,2476.0,2475.9,0.40431]
[1729707383446,4.39924974,2476.0,2475.7,3.2078]
[1729707383447,0.40423,2476.5,2476.0,0.4043]
[1729707383643,5.6914,2476.7,2475.7,3.2078]
[1729707383838,4.27012682,2476.4,2476.2,0.40426]
[1729707384137,4.27012682,2476.4,2475.7,3.2078]
[1729707384138,3.2078,2476.8,2476.0,3.2078]
[1729707384341,2.4385,2477.7,2476.9,0.40415]
[1729707384342,3.2078,2477.5,2476.9,0.40415]
[1729707384538,4.27012682,2476.7,2476.6,3.612]
[1729707384742,4.27012682,2477.1,2476.6,3.2078]
[1729707384936,3.2078,2477.5,2476.9,3.2078]
[1729707385138,4.51988217,2477.7,2477.5,0.40404]
[1729707385338,0.40404,2477.6,2477.1,0.4041]
[1729707385651,3.2078,2477.5,2477.1,0.4041]
[1729707385838,3.2078,2477.5,2477.4,0.40407]
[1729707386252,3.2078,2477.8,2476.9,4.21814]
[1729707386539,4.38967905,2477.5,2477.2,3.61189]
[1729707386745,4.38967905,2477.5,2477.2,3.2078]
[1729707387044,7.40795347,2477.6,2477.3,0.40408]
[1729707387245,4.41712999,2477.4,2477.2,3.61189]
[1729707387442,7.62492999,2477.5,2477.4,0.40407]
[1729707387644,4.41712999,2477.5,2477.4,0.40407]
[1729707387838,4.0368,2477.5,2477.1,0.40412]
[1729707388036,4.0368,2477.5,2476.9,0.40414]
[1729707388037,0.40408,2477.3,2476.9,0.40414]
[1729707388241,0.40413,2477.1,2476.8,0.40416]
[1729707388441,8.13746748,2477.2,2476.8,0.40416]
[1729707388644,4.50179418,2477.0,2476.8,0.40416]
[1729707388840,4.50179418,2477.0,2476.7,3.2078]
[1729707388841,0.40414,2477.0,2476.7,3.61197]
[1729707389248,0.40414,2477.0,2476.8,0.40416]
[1729707389249,4.48495293,2476.9,2476.8,0.40416]
[1729707389747,0.40416,2476.9,2476.7,3.2078]
[1729707390139,8.94827449,2476.8,2476.4,0.40422]
[1729707390343,4.50650449,2476.8,2476.5,0.40421]
[1729707390548,0.40418,2476.7,2476.5,0.40421]
[1729707390746,0.40418,2476.7,2476.1,3.2078]
[1729707390747,4.50650449,2476.7,2476.1,5.0728]
[1729707390941,4.50650449,2476.7,2476.6,0.4042]
[1729707391249,4.47776775,2476.8,2476.7,0.40417]
[1729707391448,4.77415,2477.0,2476.7,0.40417]
[1729707391639,8.81175,2477.0,2476.8,0.40417]
[1729707391840,4.51228968,2476.9,2476.4,3.2078]
[1729707392149,4.37,2476.7,2476.1,3.2078]
[1729707392348,3.2078,2476.6,2475.9,0.4043]
[1729707392647,0.40429,2476.1,2475.9,0.4043]
[1729707392846,7.72008968,2476.6,2475.8,5.0728]
[1729707393051,4.35849353,2476.0,2475.8,5.0728]
[1729707393348,0.40435,2475.7,2475.6,40.8]
[1729707393551,0.40435,2475.7,2475.5,3.61217]
[1729707393764,4.35849353,2475.7,2475.5,3.61217]
[1729707394053,0.40434,2475.8,2475.5,3.61217]
[1729707394452,4.67048607,2476.1,2475.6,0.40435]
[1729707394453,4.67048607,2475.7,2475.6,0.40435]
[1729707394844,4.66770099,2476.0,2475.5,3.2078]
[1729707395047,3.72832556,2475.8,2475.5,3.2078]
[1729707395239,0.40434,2475.8,2475.5,3.61217]
[1729707395453,4.0392,2475.7,2475.5,3.2078]
[1729707395647,4.66770099,2475.7,2475.6,3.2078]
[1729707395856,0.40435,2475.7,2475.6,3.2078]
[1729707396343,3.55971337,2475.7,2475.6,3.2078]
[1729707396540,0.40439,2475.4,2475.3,3.2078]
[1729707396745,1.01102,2475.4,2475.0,3.2078]
[1729707396952,4.37,2475.2,2474.5,3.2078]
[1729707397147,0.40453,2474.6,2474.5,3.2078]
[1729707397349,0.40456,2474.4,2474.3,40.8]
[1729707397650,4.79723352,2474.6,2474.3,41.20457]
[1729707397951,3.85203173,2474.4,2474.3,41.20457]
[1729707398154,0.40456,2474.4,2474.3,44.0078]
[1729707398453,0.40456,2474.4,2474.3,40.8]
[1729707398454,4.25659173,2474.4,2474.3,40.8]
[1729707398752,4.25659173,2474.4,2474.0,3.2078]
[1729707398753,0.40461,2474.1,2474.0,3.2078]
[1729707399145,8.7823307,2474.1,2474.0,3.2078]
[1729707399551,4.3361207,2474.1,2474.0,7.65402]
[1729707399754,5.7665,2474.9,2474.2,0.40458]
[1729707399959,5.7665,2474.9,2473.7,41.81166]
[1729707399960,2.5587,2474.9,2474.6,3.2078]
[1729707400148,4.26506436,2474.8,2474.7,0.40451]
[1729707400455,4.66953436,2475.0,2474.7,0.40451]
[1729707400648,4.37,2474.8,2473.4,0.11108269]
[1729707400844,0.40454,2474.6,2474.2,0.40457]
[1729707401044,7.5778,2474.8,2474.2,0.40457]
[1729707401045,0.40455,2474.5,2474.2,0.40457]
[1729707401348,4.20657649,2474.5,2474.4,0.40456]
[1729707401649,4.26660547,2474.4,2474.1,0.40461]
[1729707401862,4.26660547,2474.4,2474.3,0.40456]
[1729707402047,4.26660547,2474.4,2474.0,3.2078]
[1729707402048,4.23444055,2474.6,2474.4,0.40456]
[1729707402250,3.2078,2474.8,2474.3,3.61236]
[1729707402251,4.23444055,2474.4,2474.3,3.61236]
[1729707402447,4.23444055,2474.6,2474.3,44.0078]
[1729707402648,5.5e-07,2474.6,2474.5,0.40454]
[1729707402851,7.5778,2475.9,2474.4,4.0416]
[1729707403047,7.5778,2475.9,2475.1,3.2078]
[1729707403252,4.97015355,2475.5,2475.2,1.863]
[1729707403448,4.56576355,2475.8,2475.2,2.26741]
[1729707403652,4.56576355,2475.4,2475.2,1.863]
[1729707404063,0.40441,2475.3,2475.2,1.863]
[1729707404351,4.24407762,2475.3,2475.2,1.863]
[1729707404550,0.40441,2475.4,2475.2,1.863]
[1729707404750,0.40441,2475.4,2474.4,1.01139]
[1729707404751,3.2078,2475.3,2473.6,0.11361706]
[1729707405059,3.2078,2474.5,2474.0,3.2078]
[1729707405259,0.40457,2474.4,2474.0,3.2078]
[1729707405550,4.61543105,2474.4,2474.1,0.4046]
[1729707405753,4.21086105,2474.4,2474.0,5.0708]
[1729707405946,4.21086105,2474.4,2474.3,3.61237]
[1729707406149,4.47748955,2474.7,2474.5,0.40454]
[1729707406464,4.47748955,2474.7,2474.3,3.2078]
[1729707406465,4.47748955,2474.6,2474.4,0.40455]
[1729707406754,4.88200955,2474.7,2474.4,0.40455]
[1729707407061,0.40452,2474.7,2474.4,0.40456]
[1729707407254,4.3880726,2474.6,2474.3,5.0708]
[1729707407455,4.3880726,2474.6,2474.5,0.40454]
[1729707407651,4.3880726,2474.7,2474.4,4.0416]
[1729707407854,3.2078,2474.8,2474.6,0.40453]
[1729707408250,4.34188517,2474.7,2474.5,0.40453]
[1729707408460,4.34188517,2474.7,2474.4,0.40456]
[1729707408766,4.34188517,2474.7,2474.5,0.40453]
[1729707408953,4.34188517,2474.7,2474.6,3.61233]
[1729707409156,0.40443,2475.2,2474.6,7.2486]
[1729707409364,3.2078,2475.5,2474.6,3.2078]
[1729707409557,3.2078,2475.5,2475.0,0.40446]
[1729707409558,4.33955849,2475.1,2475.0,0.40446]
[1729707409858,3.2078,2475.5,2475.3,0.40441]
[1729707409859,4.33955849,2475.4,2475.3,0.40441]
[1729707410063,4.33955849,2475.4,2475.0,1.863]
[1729707410064,3.2078,2475.5,2475.0,1.863]
[1729707410257,3.2078,2475.5,2475.4,0.40439]
[1729707410759,48.73624,2475.8,2475.7,0.40435]
[1729707411260,53.42558276,2475.8,2475.7,0.40435]
[1729707411558,53.42558276,2475.8,2475.7,7.65135]
[1729707411559,48.73624,2475.8,2475.7,7.65135]
[1729707411950,57.34391393,2475.8,2474.9,5.27601793]
[1729707412151,0.40442,2475.3,2475.0,0.40445]
[1729707412360,0.4044,2475.4,2475.1,0.40444]
[1729707412557,4.56847393,2475.2,2475.1,0.40444]
[1729707412758,48.73624,2475.8,2475.1,8.2589]
[1729707412958,48.73624,2475.8,2475.6,0.40435]
[1729707412959,4.34180612,2475.7,2475.6,0.40435]
[1729707413160,48.73624,2475.8,2475.7,0.40435]
[1729707413458,48.73624,2475.8,2475.7,4.44355]
[1729707413763,48.73624,2475.8,2475.7,45.24355]
[1729707413947,48.73624,2475.8,2475.7,48.45135]
[1729707421862,48.73624,2475.8,2475.7,50.31435]
[1729707422360,48.12939167,2475.8,2475.7,50.31435]
[1729707423368,48.12939167,2475.8,2475.7,48.45135]
[1729707423662,56.7584506,2475.8,2475.3,3.2078]
[1729707423868,56.7584506,2475.8,2474.5,3.52012]
[1729707423869,3.2078,2475.6,2474.5,3.52012]
[1729707424079,3.2078,2475.6,2474.3,10.0822]
[1729707424080,0.40452,2474.7,2474.4,0.40456]
[1729707424365,0.40452,2474.7,2474.4,0.40455]
[1729707424564,4.24946684,2474.6,2474.3,3.2078]
[1729707424765,4.24946684,2474.6,2474.4,1.862]
[1729707424956,3.2078,2474.8,2474.5,0.40454]
[1729707424957,4.64847998,2474.7,2474.5,0.40454]
[1729707425157,3.2078,2474.8,2474.5,0.40454]
[1729707425355,3.2078,2474.8,2474.7,0.40451]
[1729707425559,3.2078,2474.8,2474.4,1.862]
[1729707425764,4.64847998,2474.7,2474.5,0.40453]
[1729707425973,0.40452,2474.7,2474.4,1.862]
[1729707426265,3.6123,2474.8,2474.6,0.40452]
[1729707426661,4.26343842,2474.7,2474.4,2.26655]